Cogmind - Beta 11.1 @@@ ROGUE MODE // 2022.05.26 @ 23:11:58 Player: darki Result: Destroyed by Enhanced Grunt with Neutron Cannon Performance ------------- Evolutions (3) 1500 Regions Visited (9) 1800 Robots Destroyed (79) 395 Value Destroyed (2162) 2162 Prototype IDs (34) 680 Alien Tech Used (0) 0 Bonus (752) 752 TOTAL SCORE: 7289 Bonus ------- High Alert Combat Kills 127 Follower Combat Kills 25 Aligned with FarCom 300 Met Data Miner 300 Cogmind --------- Core Integrity 0/700 Matter 216/300 Energy 100/100 System Corruption 1% Temperature Cool (0) Movement Core (50) Location -7/Data Miner Parts ------- > --- POWER (2) -------- (None) > --- PROPULSION (4) --- (None) > --- UTILITY (5) ------ (None) > --- WEAPON (2) ------- (None) > --- INVENTORY (5) ---- Large Matter Pod (150) Large Matter Pod (150) Advanced Targeting Computer Improved Shield Generator Mining Laser Peak State ------------ > --- POWER ------------ Deuterium Engine Improved Deuterium Engine > --- PROPULSION ------- Aluminum Leg Aluminum Leg Aluminum Leg Carbon-fiber Leg > --- UTILITY ---------- Large Storage Unit Heavy Armor Plating Heavy Armor Plating > --- WEAPON ----------- YOLO Cannon > --- INVENTORY -------- Light Fission Core Large Matter Pod Large Matter Pod Heavy Armor Plating Hardened Light Armor Plating Medium Reactive Plating Field Recycling Unit Rocket Launcher Rocket Launcher Heavy Missile Launcher Mining Laser [Rating: 49] Favorites ----------- Power Deuterium Engine Engine Deuterium Engine Propulsion Aluminum Leg Leg Aluminum Leg Hover Unit Improved Hover Unit Utility Heavy Armor Plating Device Weapon Cycler Storage Large Storage Unit Protection Heavy Armor Plating Weapon YOLO Cannon Energy Gun Small Laser Energy Cannon YOLO Cannon Launcher Rocket Launcher Build | -11 -10 -10 -10 -9 -8 -7 -7 -7 -7 ------- Run | Scr Mat Min Exi Min Mat Fac Low Low Dat Slots Evolved 6 | . . . . . 4 2 . . . Power 1 | . . . . . 1 . . . . Propulsion 2 | . . . . . 1 1 . . . Utility 3 | . . . . . 2 1 . . . Weapon . | . . . . . . . . . . Parts Attached 26 | . 3 1 2 . 8 2 1 2 7 Power 5 | . . 1 . . 3 . 1 . . Engine 5 | . . 1 . . 3 . 1 . . Core . | . . . . . . . . . . Reactor . | . . . . . . . . . . Propulsion 4 | . . . . . 3 1 . . . Treads . | . . . . . . . . . . Leg 3 | . . . . . 2 1 . . . Wheel . | . . . . . . . . . . Hover 1 | . . . . . 1 . . . . Flight . | . . . . . . . . . . Utility 10 | . 1 . 1 . 2 1 . 2 3 Device 1 | . . . . . . . . 1 . Storage 3 | . 1 . 1 . 1 . . . . Processor . | . . . . . . . . . . Hackware . | . . . . . . . . . . Protection 6 | . . . . . 1 1 . 1 3 Artifact . | . . . . . . . . . . Weapon 7 | . 2 . 1 . . . . . 4 Energy Gun . | . . . . . . . . . . Energy Cannon 1 | . . . 1 . . . . . . Ballistic Gun . | . . . . . . . . . . Ballistic Cannon . | . . . . . . . . . . Launcher 6 | . 2 . . . . . . . 4 Special Weapon . | . . . . . . . . . . Impact Weapon . | . . . . . . . . . . Slashing Weapon . | . . . . . . . . . . Piercing Weapon . | . . . . . . . . . . Special Melee Weapon . | . . . . . . . . . . Unidentified Prototypes . | . . . . . . . . . . Parts Lost 13 | . . . . . . . . . 13 Power 2 | . . . . . . . . . 2 Propulsion 4 | . . . . . . . . . 4 Utility 3 | . . . . . . . . . 3 Weapon 4 | . . . . . . . . . 4 Highest Loss Streak 13 | . . . . . . . . . 13 To Critical Strikes . | . . . . . . . . . . Average Slot Usage (%) 74 | . 84 84 76 71 64 75 76 76 72 Engine 14 | . 14 13 14 14 17 15 15 15 14 Leg 27 | . 28 28 28 28 22 30 30 30 27 Storage 10 | . 14 14 14 14 9 7 7 7 7 Protection 6 | . . . . . 1 14 15 14 15 Energy Cannon 7 | . . . 8 14 9 7 7 7 6 Launcher 5 | . 25 28 10 . . . . . . Naked Turns 4 | . . . . . . . . . 4 Heaviest Build 87 | 10 21 23 33 33 71 86 87 87 87 Greatest Support 45 | 20 20 20 20 20 35 45 45 45 45 Greatest Overweight (x) 2 | . 1 1 1 1 2 1 1 1 1 Average Overweight (x) 1 | . . 1 1 1 1 1 1 1 . Largest Inventory Capacity 15 | 8 10 10 10 10 15 15 15 15 15 Average Capacity 12 | 8 9 10 10 10 12 15 15 15 14 Most Carried 15 | 6 10 10 10 10 13 12 14 15 13 Average Carried 10 | 6 8 10 9 9 9 10 11 13 12 Final Capacity 15 | 8 10 10 10 10 15 15 15 15 5 Final Carried 14 | 6 10 10 10 9 13 11 14 13 5 Class Distribution -------------------- 100% | Mutant Dominant Class ---------------- Mutant | -10/Materials Mutant | -10/Mines Mutant | -10/Exiles Mutant | -9/Mines Mutant | -8/Materials Mutant | -7/Factory Mutant | -7/Lower Caves Mutant | -7/Lower Caves Mutant | -7/Data Miner Resources | -11 -10 -10 -10 -9 -8 -7 -7 -7 -7 ----------- Run | Scr Mat Min Exi Min Mat Fac Low Low Dat Matter Collected 1048 | 200 196 67 426 . 80 26 27 26 . Remotely . | . . . . . . . . . . Salvage Created 2123 | . 255 . 35 9 925 646 217 36 . Parts 139 | . 37 . 2 2 49 42 5 2 . Haulers Intercepted 6 | . 2 . . . 4 . . . . Recyclers Shooed 1 | . 1 . . . . . . . . Parts Field Recycled . | . . . . . . . . . . Retrieved Matter . | . . . . . . . . . . Parts Self-Destructed 9 | . . . . . . . 8 1 . Prevented . | . . . . . . . . . . Kills | -11 -10 -10 -10 -9 -8 -7 -7 -7 -7 ------- Run | Scr Mat Min Exi Min Mat Fac Low Low Dat Combat Hostiles Destroyed 35 | . 8 . 1 1 9 10 5 1 . Cannons 6 | . . . . . 3 1 2 . . AOE 25 | . 8 . . 1 6 7 3 . . Classes Destroyed 15 | . 8 . 1 1 3 2 . . . Worker 7 | . 1 . . 1 4 1 . . . Builder 14 | . 4 . . . 5 5 . . . Tunneler 4 | . 1 . . . 3 . . . . Hauler 6 | . 2 . . . 4 . . . . Recycler 4 | . 1 . . . 2 1 . . . Carrier 1 | . . . . . 1 . . . . Operator 2 | . . . . . 2 . . . . Watcher 7 | . 3 . . . 3 1 . . . Swarmer 3 | . 3 . . . . . . . . Grunt 18 | . 5 . . . 7 6 . . . Brawler 1 | . . . . . 1 . . . . Sentry 2 | . . . . . . 1 1 . . Hunter 4 | . . . 1 . 1 1 . 1 . Programmer 2 | . . . . . . 2 . . . Assembled 1 | . . . . 1 . . . . . Thug 4 | . . . . . . . 4 . . Best Kill Streak 7 | . 7 . 1 1 5 5 4 1 . Combat Bots Only 4 | . 3 . 1 1 4 4 4 1 . Max Kills in Single Turn 4 | . 4 . 1 1 3 3 2 1 . Gunslinging . | . . . . . . . . . . Exploded 3 | . 3 . . 1 2 2 2 . . Melee . | . . . . . . . . . . Uniques/NPCs Destroyed . | . . . . . . . . . . Combat | -11 -10 -10 -10 -9 -8 -7 -7 -7 -7 -------- Run | Scr Mat Min Exi Min Mat Fac Low Low Dat Damage Taken 2377 | . 117 33 87 68 62 194 298 50 1468 Core 448 | . . . 19 34 30 20 . . 345 Absorbed by Shields . | . . . . . . . . . . Core Remaining (%) 90 | 100 . . . 78 94 . . . . Volleys Fired 77 | . 13 . 3 2 26 23 6 1 3 Largest 2 | . 2 . 1 1 1 1 1 1 2 Hottest 100 | . 66 . 100 100 100 100 100 100 100 Shots Fired 92 | . 26 . 3 2 26 23 7 1 4 Gun . | . . . . . . . . . . Cannon 62 | . . . 3 2 26 23 7 1 . Launcher 30 | . 26 . . . . . . . 4 Special . | . . . . . . . . . . Kinetic . | . . . . . . . . . . Thermal 62 | . . . 3 2 26 23 7 1 . Explosive 30 | . 26 . . . . . . . 4 Electromagnetic . | . . . . . . . . . . Robot Hit Streak 6 | . 3 . 1 . 6 4 1 2 3 Robot Miss Streak 3 | . 3 . 1 1 3 3 2 . 1 Penetration Max . | . . . . . . . . . . Secondary Targets . | . . . . . . . . . . Shots Hit Robots 36 | . 10 . 1 . 12 7 2 1 3 Core Hits 82 | . 21 . . 2 26 18 7 . 8 Critical Kills 8 | . . . 1 . 4 2 . 1 . Critical Parts Destroyed . | . . . . . . . . . . Critical Strikes 8 | . . . 1 . 4 2 . 1 . Meltdown 8 | . . . 1 . 4 2 . 1 . Melee Attacks . | . . . . . . . . . . Impact . | . . . . . . . . . . Slashing . | . . . . . . . . . . Piercing . | . . . . . . . . . . Sneak Attacks . | . . . . . . . . . . Combat Hostiles . | . . . . . . . . . . Follow-up Attacks . | . . . . . . . . . . Damage Inflicted 8758 | . 1445 . 185 182 3260 2238 650 148 650 Guns . | . . . . . . . . . . Cannons 2695 | . . . 111 . 1326 878 232 148 . Explosions 6063 | . 1445 . 74 182 1934 1360 418 . 650 Melee . | . . . . . . . . . . Ramming . | . . . . . . . . . . Kinetic . | . . . . . . . . . . Thermal 6663 | . . . 185 182 3260 2238 650 148 . Explosive 2095 | . 1445 . . . . . . . 650 Electromagnetic . | . . . . . . . . . . Impact . | . . . . . . . . . . Slashing . | . . . . . . . . . . Piercing . | . . . . . . . . . . Highest Corruption 1 | . . . . . . 1 1 1 1 Average Corruption 1 | . . . . . . 1 1 1 1 Corruption Purged . | . . . . . . . . . . Corruption Blocked . | . . . . . . . . . . Effects 15 | . . . . . . 10 3 2 . Message Errors 3 | . . . . . . 2 1 . . Matter Fused 5 | . . . . . . 4 . 1 . Heat Flow Errors 1 | . . . . . . . . 1 . Energy Discharges 2 | . . . . . . 2 . . . Data Loss (minor) 2 | . . . . . . 1 1 . . Data Loss (major) 1 | . . . . . . 1 . . . Misfires 1 | . . . . . . . 1 . . Overload Shots . | . . . . . . . . . . Overflow Damage 966 | . 39 . 11 . 243 471 147 38 17 Projectiles 633 | . . . 11 . 81 407 96 38 . Explosions 333 | . 39 . . . 162 64 51 . 17 Melee . | . . . . . . . . . . Knockbacks . | . . . . . . . . . . Impact . | . . . . . . . . . . Kinetic . | . . . . . . . . . . Secondary . | . . . . . . . . . . Self-Inflicted Damage 307 | . 63 . . . . . 126 . 118 Shots 8 | . 2 . . . . . 2 . 4 Rammed . | . . . . . . . . . . Targets Rammed . | . . . . . . . . . . Kicked . | . . . . . . . . . . Crushed . | . . . . . . . . . . Highest Temperature 279 | . 27 . 40 20 96 260 279 156 60 Average Temperature 73 | . 7 . 18 11 30 100 114 63 26 Received Heat Transfer 162 | . 21 . . . 18 6 117 . . Effects 1 | . . . . . . 1 . . . Interference 1 | . . . . . . 1 . . . Siege Activations . | . . . . . . . . . . Robots Corrupted . | . . . . . . . . . . Combat Hostiles . | . . . . . . . . . . Parts Fried . | . . . . . . . . . . Impact Corruptions . | . . . . . . . . . . Robots Melted 8 | . . . 1 . 4 2 . 1 . Combat Hostiles 4 | . . . 1 . . 2 . 1 . Parts Melted 15 | . . . 1 . 7 3 3 1 . Heat Transferred 6210 | . . . 160 160 2930 2080 800 80 . Parts Sabotaged . | . . . . . . . . . . Parts Stolen . | . . . . . . . . . . Parts Stripped . | . . . . . . . . . . Power Chain Reactions . | . . . . . . . . . . Missiles Intercepted . | . . . . . . . . . . Alert | -11 -10 -10 -10 -9 -8 -7 -7 -7 -7 ------- Run | Scr Mat Min Exi Min Mat Fac Low Low Dat Peak Influence 646 | . 646 195 . 33 536 611 . . . Initial 217 | . . 195 . . . 217 . . . Average 236 | . 375 162 . 6 227 432 . . . Maximum Alert Level 2 | . 2 . . . 2 2 . . . Low Security (%) 49 | 100 14 100 . 100 45 . . . . Level 1 18 | . 35 . . . 28 26 . . . Level 2 31 | . 49 . . . 26 73 . . . Level 3 . | . . . . . . . . . . Level 4 . | . . . . . . . . . . Level 5 . | . . . . . . . . . . High Security . | . . . . . . . . . . Max Security . | . . . . . . . . . . Squads Dispatched 5 | . 2 . . . 1 2 . . . Investigation 2 | . 1 . . . 1 . . . . Extermination 1 | . . . . . . 1 . . . Reinforcement 2 | . 1 . . . . 1 . . . Assault . | . . . . . . . . . . Garrison . | . . . . . . . . . . Intercept . | . . . . . . . . . . Searches Triggered . | . . . . . . . . . . Construction Impeded 1 | . . . . . . 1 . . . Haulers Reinforced . | . . . . . . . . . . Active Scanning Responses . | . . . . . . . . . . Cargo Convoy Interrupts . | . . . . . . . . . . Stealth | -11 -10 -10 -10 -9 -8 -7 -7 -7 -7 --------- Run | Scr Mat Min Exi Min Mat Fac Low Low Dat Distress Signals 4 | . 1 . . 3 . . . . . Communications Jammed . | . . . . . . . . . . Distress Signals . | . . . . . . . . . . Times Spotted 53 | . 11 2 1 3 13 6 8 1 8 Peak Tracking Total 4 | . 4 2 2 1 3 3 4 1 4 Tactical Retreats 3 | . . . . 1 1 . 1 . . Traps | -11 -10 -10 -10 -9 -8 -7 -7 -7 -7 ------- Run | Scr Mat Min Exi Min Mat Fac Low Low Dat Traps Triggered 2 | . 1 . . . 1 . . . . Indirectly . | . . . . . . . . . . Trap Hack Attempts . | . . . . . . . . . . Triggered . | . . . . . . . . . . Disarmed . | . . . . . . . . . . Reprogrammed . | . . . . . . . . . . Reused . | . . . . . . . . . . Traps Extracted . | . . . . . . . . . . Installed . | . . . . . . . . . . Triggered . | . . . . . . . . . . Exploded 1 | . . . . 1 . . . . . Machines | -11 -10 -10 -10 -9 -8 -7 -7 -7 -7 ---------- Run | Scr Mat Min Exi Min Mat Fac Low Low Dat Machines Disabled 35 | . 4 1 4 . 11 14 . . 1 Max in Single Turn 3 | . 1 . 2 . 3 3 . . 1 Machines Sabotaged . | . . . . . . . . . . Garrisons Compromised . | . . . . . . . . . . Overloaded Fab Kills . | . . . . . . . . . . Hacking | -11 -10 -10 -10 -9 -8 -7 -7 -7 -7 --------- Run | Scr Mat Min Exi Min Mat Fac Low Low Dat Machines Accessed 10 | . 1 . 1 . 1 2 1 . 4 Terminals 4 | . 1 . . . 1 2 . . . Fabricators . | . . . . . . . . . . Repair Stations . | . . . . . . . . . . Recycling Units . | . . . . . . . . . . Scanalyzers . | . . . . . . . . . . Garrison Access . | . . . . . . . . . . Total Hacks 39 | . 1 . 1 . 3 4 1 . 29 Successful 35 | . 1 . 1 . 2 1 1 . 29 Failed 4 | . . . . . 1 3 . . . Catastrophic 1 | . . . . . . 1 . . . Database Lockouts . | . . . . . . . . . . Manual 3 | . 1 . 1 . . 1 . . . Terminals 8 | . 1 . . . 3 4 . . . Fabricators . | . . . . . . . . . . Repair Stations . | . . . . . . . . . . Recycling Units . | . . . . . . . . . . Scanalyzers . | . . . . . . . . . . Garrison Access . | . . . . . . . . . . Terminal Hacks 35 | . 1 . 1 . 2 1 1 . 29 Record 11 | . . . . . . . . . 11 Part Schematic 11 | . . . . . . . . . 11 Robot Schematic 4 | . . . . . . . . . 4 Prototype ID Bank 3 | . . . . . . . . . 3 Open Door 1 | . . . . . . . 1 . . Open DSF 1 | . . . . . . 1 . . . Branch Access Points 2 | . 1 . . . 1 . . . . Zone Layout 1 | . . . . . 1 . . . . EX-Prototype ID Bank 1 | . . . 1 . . . . . . Fabricator Hacks . | . . . . . . . . . . Repair Station Hacks . | . . . . . . . . . . Recycling Unit Hacks . | . . . . . . . . . . Scanalyzer . | . . . . . . . . . . Garrison Access Hacks . | . . . . . . . . . . Unauthorized Hacks . | . . . . . . . . . . Terminals . | . . . . . . . . . . Fabricators . | . . . . . . . . . . Repair Stations . | . . . . . . . . . . Recycling Units . | . . . . . . . . . . Scanalyzers . | . . . . . . . . . . Garrison Access . | . . . . . . . . . . Data Cores Recovered . | . . . . . . . . . . Used . | . . . . . . . . . . Hacking Detections 3 | . . . . . 1 2 . . . Full Trace Events 1 | . . . . . 1 . . . . Feedback Events . | . . . . . . . . . . Feedback Blocked . | . . . . . . . . . . Robot Schematics Acquired 4 | . . . . . . . . . 4 Robots Built . | . . . . . . . . . . Authchips . | . . . . . . . . . . Time . | . . . . . . . . . . Total Robot Build Rating . | . . . . . . . . . . Part Schematics Acquired 11 | . . . . . . . . . 11 Parts Built . | . . . . . . . . . . Authchips . | . . . . . . . . . . Time . | . . . . . . . . . . Total Part Build Rating . | . . . . . . . . . . Parts Repaired . | . . . . . . . . . . Time . | . . . . . . . . . . Parts Recycled . | . . . . . . . . . . Recycled Matter . | . . . . . . . . . . Retrieved Matter . | . . . . . . . . . . Retrieved Components . | . . . . . . . . . . Parts Scanalyzed . | . . . . . . . . . . Part Schematics Acquired . | . . . . . . . . . . Parts Damaged . | . . . . . . . . . . Bothacking | -11 -10 -10 -10 -9 -8 -7 -7 -7 -7 ------------ Run | Scr Mat Min Exi Min Mat Fac Low Low Dat Used RIF Installer . | . . . . . . . . . . Robots Hacked . | . . . . . . . . . . Non-combat . | . . . . . . . . . . Combat . | . . . . . . . . . . Robot Hacks Applied . | . . . . . . . . . . Relay Couplers Released . | . . . . . . . . . . Fabnet Peak Effective % . | . . . . . . . . . . Robots Rewired . | . . . . . . . . . . Allies Hacked . | . . . . . . . . . . Hacks Repelled . | . . . . . . . . . . Allies | -11 -10 -10 -10 -9 -8 -7 -7 -7 -7 -------- Run | Scr Mat Min Exi Min Mat Fac Low Low Dat Total Allies 2 | . . 2 . . . . . . . Largest Group 2 | . . 2 . . . . . . . Highest-Rated Group 45 | . . 45 . . . . . . . Highest-Rated Ally 31 | . . 31 . . . . . . . Total Orders . | . . . . . . . . . . Ally Attacks 3 | . . 3 . . . . . . . Total Damage 156 | . . 156 . . . . . . . Kills 2 | . . 2 . . . . . . . Allies Corrupted . | . . . . . . . . . . Allies Melted . | . . . . . . . . . . Intel | -11 -10 -10 -10 -9 -8 -7 -7 -7 -7 ------- Run | Scr Mat Min Exi Min Mat Fac Low Low Dat Robot Analysis Total . | . . . . . . . . . . Derelict Logs Recovered 6 | . . 1 . 2 . . 1 2 . Drone Launches . | . . . . . . . . . . Drone Recoveries . | . . . . . . . . . . Exploration | -11 -10 -10 -10 -9 -8 -7 -7 -7 -7 ------------- Run | Scr Mat Min Exi Min Mat Fac Low Low Dat Turns Passed 6664 | 5 497 483 835 1001 957 1060 891 731 204 Spaces Moved 2799 | 5 246 220 317 318 307 473 435 381 97 Core 6 | . . . . . . . . . 6 Treads . | . . . . . . . . . . Legs 2793 | 5 246 220 317 318 307 473 435 381 91 Wheels . | . . . . . . . . . . Hover . | . . . . . . . . . . Flight . | . . . . . . . . . . Fastest Speed 50 | 120 120 190 190 190 190 190 190 190 50 Average Speed 192 | 120 172 190 190 190 228 190 190 190 181 Slowest Speed 260 | 120 190 190 190 190 260 190 190 190 190 Overloaded Moves . | . . . . . . . . . . Propulsion Burnouts . | . . . . . . . . . . Robots Hopped . | . . . . . . . . . . Cave-ins Triggered . | . . . . . . . . . . Exploration Rate (%) 47 | 1 45 59 61 75 29 15 59 57 76 Regions Visited 9 Branch Regions 6 Pre-discovered Areas 2 | . . . . . . . . 1 1 Known Exits Taken 3 | . 1 . 1 . 1 . . . . Unknown Exits Taken 6 | 1 . 1 . 1 . 1 1 1 . Scrap Searched 15 | . . 2 . 2 . . 7 4 . Spaces Dug 67 | . . . . . 41 7 19 . . Terrain Destroyed 771 | . 128 . 26 32 301 149 97 10 28 Melee . | . . . . . . . . . . Projectile 21 | . . . 1 2 8 5 5 . . AOE 750 | . 128 . 25 30 293 144 92 10 28 Terrain Rammed . | . . . . . . . . . . Walls Destroyed . | . . . . . . . . . . Machines Disabled . | . . . . . . . . . . Actions | -11 -10 -10 -10 -9 -8 -7 -7 -7 -7 --------- Run | Scr Mat Min Exi Min Mat Fac Low Low Dat Total 3876 | 4 295 285 544 710 484 566 482 387 119 Wait 929 | . 19 64 210 390 134 66 37 1 8 Move 2790 | 4 245 219 316 317 306 472 434 380 97 Hop . | . . . . . . . . . . Pick Up 22 | . 8 . 5 . 4 2 3 . . Fast Attach 15 | . 3 1 2 . 7 . 1 1 . Attach 9 | . . . . . . 2 . 1 6 Detach 1 | . . . . . . . . 1 . Swap 2 | . . . . . 1 . . . 1 Drop 31 | . 7 1 8 1 6 1 1 2 4 Fire 77 | . 13 . 3 2 26 23 6 1 3 Melee . | . . . . . . . . . . Ram . | . . . . . . . . . . Kick . | . . . . . . . . . . Crush . | . . . . . . . . . . Escape Stasis . | . . . . . . . . . . Rewire . | . . . . . . . . . . Trap . | . . . . . . . . . . Miscellaneous . | . . . . . . . . . . Route ------- -11/Scrapyard -10/Materials -10/Mines -10/Exiles (discovered 2 exits: *Min x2) -9/Mines -8/Materials (discovered 3 exits: *Fac x3) -7/Factory -7/Lower Caves -7/Lower Caves -7/Data Miner (discovered 1 exit: [*Pro]) History --------- Turn | Location | Event 1 | -11/Scrapyard | Discovered new exit (range 0) 6 | -11/Scrapyard | Entered Materials 74 | -10/Materials | Identified exit to Mines 302 | -10/Materials | Build established: Mutant 503 | -10/Materials | Entered Mines 612 | -10/Mines | Met a Derelict bent on vengeance 965 | -10/Mines | Discovered new exit (range 10) 986 | -10/Mines | Entered Exiles 987 | -10/Exiles | Identified exit to Mines 1044 | -10/Exiles | Met 8R-AWN 1081 | -10/Exiles | Met EX-HEX 1136 | -10/Exiles | Met EX-BIN 1236 | -10/Exiles | Aligned with FarCom system 1238 | -10/Exiles | Given EX-Vault access code 1286 | -10/Exiles | Opened EX-Vault 1302 | -10/Exiles | Found YOLO Cannon 1350 | -10/Exiles | Warned to stay clear of 0b10 Research branches 1372 | -10/Exiles | Exiles lab attacked by MAIN.C 1821 | -10/Exiles | Left Exiles lab with YOLO Cannon 1821 | -10/Exiles | Entered Mines 1824 | -9/Mines | Assembled infested the area 2384 | -9/Mines | Learned 4 Materials zone layouts 2768 | -9/Mines | Discovered new exit (range 5) 2789 | -9/Mines | Learned location of 1 exit from Materials 2822 | -9/Mines | Entered Materials 2822 | -8/Materials | Evolved 4 slots: Power x1, Propulsion x1, Utility x2 2823 | -8/Materials | Identified exit to Factory 3365 | -8/Materials | Discovered exit to Factory (range 5) 3601 | -8/Materials | Discovered exit to Factory (range 15) 3779 | -8/Materials | Entered Factory 3779 | -7/Factory | Evolved 2 slots: Propulsion x1, Utility x1 4412 | -7/Factory | Discovered new exit (range 11) 4839 | -7/Factory | Entered Lower Caves 4860 | -7/Lower Caves | Learned location of 1 exit from Factory 5106 | -7/Lower Caves | Ambushed by wild Derelicts 5242 | -7/Lower Caves | Encountered a Warlord checkpoint 5648 | -7/Lower Caves | Discovered new exit (range 15) 5730 | -7/Lower Caves | Entered another Lower Caves area 5731 | -7/Lower Caves | Encountered a Warlord checkpoint 6303 | -7/Lower Caves | Learned location of 1 exit from Factory 6418 | -7/Lower Caves | Discovered new exit (range 7) 6461 | -7/Lower Caves | Entered Data Miner 6461 | -7/Data Miner | Discovered new exit (range 6) 6498 | -7/Data Miner | Met Data Miner 6547 | -7/Data Miner | Learned location of Section 7 (-2) 6547 | -7/Data Miner | Acquired the access code to Warlord's prototype stash 6562 | -7/Data Miner | Received God Mode back door access code from Data Miner 6642 | -7/Data Miner | Data Conduit disabled 6643 | -7/Data Miner | Core integrity fell below 50% 6665 | -7/Data Miner | Core integrity fell below 20% 6665 | -7/Data Miner | Destroyed by Enhanced Grunt with Neutron Cannon Last Messages --------------- 06642_ YOLO Cannon suddenly explodes. 06642_ Aluminum Leg destroyed. 06642_ Imp. Deuterium Engine destroyed. 06642_ Hvy. Armor Plating destroyed. 06642_ Core damaged (-340). 06642_ Carbon-fiber Leg destroyed. 06642_ Destroyed Carbon-fiber Leg. 06642_ Data Conduit disabled. 06643_ Hvy. Armor Plating destroyed. 06646_ Aluminum Leg destroyed. 06649_ Dropped Rigged Lgt. Fission Core. 06655_ Destroyed Prototype Device. 06659_ Rocket Launcher destroyed. 06659_ Hvy. Armor Plating destroyed. 06660_ Hvy. Missile Launcher destroyed. 06660_ Rocket Launcher destroyed. 06660_ Dropped Lrg. Storage Unit. 06661_ Dropped Hrd. Light Armor Plating. 06661_ Dropped Med. Reactive Plating. 06661_ Deuterium Engine destroyed. Map ----- +----------------------------------------------------+ | | | | | | | | | | | | | | | | | | | | | | | ?????????????????????????????????????????????? | | ?????????????????????????????????????????????? | | ?????????????????????????????????????????????? | | ????????????????????????#########????????????? | | ????????????????????????# ##???####????? | | ??????###############??? #?### #????? | | ??????""""""""""""""##### ### #????? | | ??????""""""" """""""" ## < ##????? | | ?????"""""""" g gg ###### | | ????"""""" g # | | ????"""""" ! # | | ????""""" !*! # | | ????"""""" ## | | ????"""""" """""""""#####? | | ?????"""""" @ "" ;;;;;##########????? | | ??????""""" """""##; ## #?????????????? | | ??????""""""" "###### ##?##?????????????? | | ??????######"## "#????###?????????????????? | | ???????????#"### "#????????????????????????? | | ???????????#"### "#????????????????????????? | | ???????????#"## "#????????????????????????? | | ????????????"## "#????????????????????????? | | ?????????????# "#????????????????????????? | | ?????????????### "#????????????????????????? | | ???????????????# "##???????????????????????? | | ??????????????## ""#???????????????????????? | | ???????????#?## ""#???????????????????????? | | ??????????##"#"X ""#???????????????????????? | | ??????????""""" "####????????????????????? | | ??????????""""" X"""""????????????????????? | | ??????????##"#"X "##"#????????????????????? | | ???????????#?## X""""#????????????????????? | | ??????????????## "##"#????????????????????? | | ???????????????#######???????????????????????? | | ?????????????????????????????????????????????? | | ?????????????????????????????????????????????? | | ?????????????????????????????????????????????? | | ?????????????????????????????????????????????? | | ?????????????????????????????????????????????? | +----------------------------------------------------+ Best States ------------- Heat Dissipation 34 Energy Generation 25 Energy Capacity 465 Matter Stores 300 Matter Capacity 300 Sight Range 16 Terrain Scan Density 10 Armor Coverage 1200 Resistance: KI 30 Weapon Cycling 15 Evasion (%) 55 Item Schematics ----------------- Cld. Aerolev Unit | -7/Data Miner | Free Lgt. Regenerative Plating | -7/Data Miner | Free Combat Drone Bay | -7/Data Miner | Free Exp. Targeting Computer | -7/Data Miner | Free Shock Maul | -7/Data Miner | Free Arm. Medium Treads | -7/Data Miner | Free Imp. Thermal Shield | -7/Data Miner | Free Mass Driver | -7/Data Miner | Free Imp. Shock Absorption System | -7/Data Miner | Free Matter Compressor | -7/Data Miner | Free Dispersion Rifle | -7/Data Miner | Free Robot Schematics ------------------ S-27 Virus | -7/Data Miner | Free R-10 Processor | -7/Data Miner | Free L-41 Fighter | -7/Data Miner | Free B-60 Warrior | -7/Data Miner | Free Fabricated ------------ Nothing Alien Tech Used ----------------- None Achievements -------------- Preemptive Strike Challenges ------------ None Game ------ Seed TractorBottomlessAxe Manual? 0 Play Time 00:35:52 Cumulative 81.0 hours Start 2022.05.26 @ 22:05:37 End 2022.05.26 @ 23:11:58 Sessions 1 Manual Loads 0 Difficulty Rogue Special Mode None Game No. 91 Rogue 91 Adventurer 0 Explorer 0 Win Type - Total 0 Types 0/0/0/0/0/0/0/0/0 Lore% 43 Gallery% 53 Achievement% 41 Wizard Run 0 Options --------- ASCII 0 Keyboard 0 Movement Mouse Keybinds 0 Fullscreen 1 Font 18/SmallcapsGlow Map View 76x50 Tactical HUD 1 Map Filters NONE Filters NONE Steam 1 RUN: dcdde5c4-2626-48aa-953d-57a682c620b9